Cogmind - Beta 13 @@@ ROGUE MODE // 2024.05.03 @ 17:18:57 Player: Oldman Pu Result: Destroyed by XY-9P0(R) with Subdweller Shrapnel Launcher Performance ------------- Evolutions (0) 0 Regions Visited (2) 400 Robots Destroyed (22) 110 Value Destroyed (402) 402 Prototype IDs (0) 0 Alien Tech Used (0) 0 Bonus (0) 0 TOTAL SCORE: 912 Bonus ------- None Cogmind --------- Core Integrity 0/250 Matter 220/300 Energy 200/200 System Corruption 0% Temperature Cool (0) Movement Rolling (120) Ox1 Location -10/Subcaves Parts ------- > --- POWER (1) -------- Subdweller Power Source > --- PROPULSION (2) --- Subdweller Monowheel Subdweller Monowheel > --- UTILITY (2) ------ Heat Sink High-capacity Storage Unit > --- WEAPON (2) ------- Subdweller Laser Subdweller Machine Gun > --- INVENTORY (20) --- Subdweller Power Source Wheel Subdweller Monowheel Huge Storage Unit Medium Battery (150) Medium Laser Medium Laser Subdweller Laser Subdweller Beam Cannon Assault Rifle Subdweller Machine Gun Improved Light Cannon Improved Light Cannon Improved Light Cannon Improved Light Cannon Peak State ------------ > --- POWER ------------ Subdweller Power Source > --- PROPULSION ------- Subdweller Monowheel Subdweller Monowheel > --- UTILITY ---------- Heat Sink High-capacity Storage Unit > --- WEAPON ----------- Subdweller Laser Subdweller Machine Gun > --- INVENTORY -------- Wheel Subdweller Monowheel Huge Storage Unit Medium Battery Medium Laser Medium Laser Subdweller Laser Subdweller Beam Cannon Assault Rifle Subdweller Machine Gun Improved Light Cannon Improved Light Cannon Improved Light Cannon Improved Light Cannon [Rating: 14] Favorites ----------- Power Light Ion Engine Engine Light Ion Engine Propulsion Wheel Wheel Wheel Utility Heat Sink Device Heat Sink Storage High-capacity Storage Unit Weapon Improved Light Cannon Energy Gun Medium Laser Ballistic Gun Subdweller Machine Gun Ballistic Cannon Improved Light Cannon Build | -11 -10 -10 ------- Run | Yrd Mat Sub Slots Evolved . | . . . Power . | . . . Propulsion . | . . . Utility . | . . . Weapon . | . . . Parts Attached 32 | 6 10 16 Power 6 | 1 1 4 Engine 6 | 1 1 4 Core . | . . . Reactor . | . . . Propulsion 7 | 2 1 4 Treads . | . . . Leg . | . . . Wheel 7 | 2 1 4 Hover . | . . . Flight . | . . . Utility 6 | 1 4 1 Device 2 | . 1 1 Storage 4 | 1 3 . Processor . | . . . Hackware . | . . . Protection . | . . . Artifact . | . . . Weapon 13 | 2 4 7 Energy Gun 6 | 1 2 3 Energy Cannon . | . . . Ballistic Gun 5 | 1 . 4 Ballistic Cannon 2 | . 2 . Launcher . | . . . Special Weapon . | . . . Impact Weapon . | . . . Slashing Weapon . | . . . Piercing Weapon . | . . . Special Melee Weapon . | . . . Unidentified Prototypes . | . . . Parts Lost 6 | . 1 5 Power 1 | . . 1 Propulsion 3 | . 1 2 Utility 1 | . . 1 Weapon 1 | . . 1 Highest Loss Streak 3 | . 1 3 To Critical Strikes . | . . . Average Slot Usage (%) 98 | . 99 98 Engine 13 | . 14 13 Wheel 27 | . 27 27 Device 13 | . 13 13 Storage 14 | . 14 14 Energy Gun 10 | . 12 8 Ballistic Gun 4 | . . 8 Ballistic Cannon 12 | . 14 11 Naked Turns . | . . . Heaviest Build 54 | 13 52 54 Greatest Support 40 | 26 26 40 Greatest Overweight (x) 5 | . 1 5 Average Overweight (x) . | . . 1 Largest Inventory Capacity 20 | 8 20 20 Average Capacity 15 | 6 12 20 Most Carried 15 | 1 10 15 Average Carried 10 | . 8 12 Final Capacity 20 | 8 20 20 Final Carried 15 | 1 10 15 Class Distribution -------------------- 88% | Mutant 11% | Scavenger-Mutant Dominant Class ---------------- Mutant | -10/Materials Mutant | -10/Subcaves Resources | -11 -10 -10 ----------- Run | Yrd Mat Sub Matter Collected 543 | 153 157 233 Remotely . | . . . Salvage Created 583 | . 413 170 Parts 39 | . 26 13 Haulers Intercepted 2 | . 2 . Recyclers Shooed 1 | . 1 . Parts Field Recycled . | . . . Retrieved Matter . | . . . Parts Self-Destructed 3 | . . 3 Prevented . | . . . Kills | -11 -10 -10 ------- Run | Yrd Mat Sub Combat Hostiles Destroyed 15 | . 10 5 Guns 12 | . 9 3 Cannons 2 | . . 2 Classes Destroyed 6 | . 5 1 Worker 2 | . 2 . Hauler 2 | . 2 . Watcher 3 | . 3 . Swarmer 8 | . 8 . Grunt 2 | . 2 . Subdweller 5 | . . 5 Best Kill Streak 5 | . 5 2 Combat Bots Only 3 | . 3 2 Max Kills in Single Turn 2 | . 2 1 Gunslinging . | . . . Exploded . | . . . Melee . | . . . Uniques/NPCs Destroyed . | . . . Combat | -11 -10 -10 -------- Run | Yrd Mat Sub Hostile Shots Fired 93 | . 58 35 Missed 28 | . 20 8 Damage Taken 973 | . 322 651 Core 252 | . 92 160 Absorbed by Shields . | . . . Core Remaining (%) 100 | 100 . . Volleys Fired 86 | . 52 34 Largest 2 | . 2 2 Hottest 120 | . 100 120 Shots Fired 170 | . 104 66 Gun 145 | . 104 41 Cannon 25 | . . 25 Launcher . | . . . Special . | . . . Kinetic 39 | . . 39 Thermal 131 | . 104 27 Explosive . | . . . Electromagnetic . | . . . Robot Hit Streak 12 | . 9 12 Robot Miss Streak 4 | . 4 1 Penetration Max . | . . . Secondary Targets . | . . . Shots Hit Robots 97 | . 63 34 Core Hits 29 | . 20 9 Critical Kills . | . . . Critical Parts Destroyed . | . . . Critical Strikes 7 | . 6 1 Burn 6 | . 6 . Blast 1 | . . 1 Melee Attacks . | . . . Impact . | . . . Slashing . | . . . Piercing . | . . . Sneak Attacks . | . . . Combat Hostiles . | . . . Follow-up Attacks . | . . . Damage Inflicted 1483 | . 796 687 Guns 1289 | . 796 493 Cannons 194 | . . 194 Explosions . | . . . Melee . | . . . Ramming . | . . . Kinetic 358 | . . 358 Thermal 1125 | . 796 329 Explosive . | . . . Electromagnetic . | . . . Impact . | . . . Slashing . | . . . Piercing . | . . . Highest Corruption . | . . . Average Corruption . | . . . Corruption Purged . | . . . Corruption Blocked . | . . . Overload Shots . | . . . Overflow Damage . | . . . Projectiles . | . . . Explosions . | . . . Melee . | . . . Knockbacks 1 | . . 1 Impact . | . . . Kinetic 1 | . . 1 Secondary . | . . . Self-Inflicted Damage . | . . . Shots . | . . . Rammed . | . . . Targets Rammed . | . . . Kicked . | . . . Crushed . | . . . Highest Temperature 72 | . 72 . Average Temperature 23 | . 23 . Received Heat Transfer 156 | . 48 108 Siege Activations . | . . . Robots Corrupted . | . . . Combat Hostiles . | . . . Parts Fried . | . . . Impact Corruptions . | . . . Robots Melted 2 | . 2 . Combat Hostiles 1 | . 1 . Parts Melted 8 | . 7 1 Heat Transferred 3273 | . 2812 461 Parts Sabotaged . | . . . Parts Stolen . | . . . Parts Stripped . | . . . Power Chain Reactions . | . . . Alert | -11 -10 -10 ------- Run | Yrd Mat Sub Peak Influence 285 | . 285 . Initial . | . . . Average 109 | . 112 . Maximum Alert Level 1 | . 1 . Low Security (%) 87 | 100 87 . Level 1 12 | . 12 . Level 2 . | . . . Level 3 . | . . . Level 4 . | . . . Level 5 . | . . . High Security . | . . . Max Security . | . . . Squads Dispatched 1 | . 1 . Investigation . | . . . Extermination . | . . . Reinforcement 1 | . 1 . Assault . | . . . Garrison . | . . . Intercept . | . . . Searches Triggered . | . . . Construction Impeded . | . . . Haulers Reinforced . | . . . Active Scanning Responses . | . . . Cargo Convoy Interrupts . | . . . Stealth | -11 -10 -10 --------- Run | Yrd Mat Sub Distress Signals 2 | . 2 . Communications Jammed . | . . . Distress Signals . | . . . Times Spotted 25 | . 19 6 Peak Tracking Total 4 | . 4 2 Tactical Retreats 1 | . 1 . Traps | -11 -10 -10 ------- Run | Yrd Mat Sub Traps Triggered . | . . . Indirectly . | . . . Trap Hack Attempts . | . . . Triggered . | . . . Disarmed . | . . . Reprogrammed . | . . . Reused . | . . . Traps Extracted . | . . . Installed . | . . . Triggered . | . . . Machines | -11 -10 -10 ---------- Run | Yrd Mat Sub Machines Disabled . | . . . Max in Single Turn . | . . . Machines Repaired . | . . . Machines Dismantled . | . . . Machines Sabotaged . | . . . Overloaded Fab Kills . | . . . Hacking | -11 -10 -10 --------- Run | Yrd Mat Sub Machines Accessed 3 | . 3 . Terminals 3 | . 3 . Fabricators . | . . . Repair Stations . | . . . Recycling Units . | . . . Scanalyzers . | . . . Garrison Access . | . . . Total Hacks 6 | . 6 . Successful 6 | . 6 . Failed . | . . . Catastrophic . | . . . Database Lockouts . | . . . Manual . | . . . Terminals 6 | . 6 . Fabricators . | . . . Repair Stations . | . . . Recycling Units . | . . . Scanalyzers . | . . . Garrison Access . | . . . Terminal Hacks 6 | . 6 . Record 1 | . 1 . Emergency Access Points 1 | . 1 . Locate Traps 1 | . 1 . Dispatch Records 1 | . 1 . Transport Status 1 | . 1 . Zone Layout 1 | . 1 . Fabricator Hacks . | . . . Repair Station Hacks . | . . . Recycling Unit Hacks . | . . . Scanalyzer . | . . . Garrison Access Hacks . | . . . Unauthorized Hacks . | . . . Terminals . | . . . Fabricators . | . . . Repair Stations . | . . . Recycling Units . | . . . Scanalyzers . | . . . Garrison Access . | . . . Data Cores Recovered . | . . . Used . | . . . Hacking Detections 1 | . 1 . Full Trace Events . | . . . Feedback Events . | . . . Feedback Blocked . | . . . Robot Schematics Acquired . | . . . Robots Built . | . . . Authchips . | . . . Time . | . . . Total Robot Build Rating . | . . . Part Schematics Acquired . | . . . Parts Built . | . . . Authchips . | . . . Time . | . . . Total Part Build Rating . | . . . Parts Repaired . | . . . Time . | . . . Parts Recycled . | . . . Recycled Matter . | . . . Retrieved Matter . | . . . Retrieved Components . | . . . Parts Scanalyzed . | . . . Part Schematics Acquired . | . . . Parts Damaged . | . . . Bothacking | -11 -10 -10 ------------ Run | Yrd Mat Sub Used RIF Installer . | . . . Robots Hacked . | . . . Non-combat . | . . . Combat . | . . . Robot Hacks Applied . | . . . Relay Couplers Released . | . . . Fabnet Peak Effective % . | . . . Robots Rewired . | . . . Allies Hacked . | . . . Hacks Repelled . | . . . Allies | -11 -10 -10 -------- Run | Yrd Mat Sub Total Allies . | . . . Largest Group . | . . . Highest-Rated Group . | . . . Highest-Rated Ally . | . . . Total Orders . | . . . Ally Attacks . | . . . Total Damage . | . . . Kills . | . . . Allies Corrupted . | . . . Allies Melted . | . . . Intel | -11 -10 -10 ------- Run | Yrd Mat Sub Robot Analysis Total . | . . . Derelict Logs Recovered 1 | . . 1 Drone Launches . | . . . Drone Recoveries . | . . . Exploration | -11 -10 -10 ------------- Run | Yrd Mat Sub Turns Passed 1968 | 36 1027 905 Spaces Moved 1365 | 34 677 654 Core 10 | 10 . . Treads . | . . . Legs . | . . . Wheels 1355 | 24 677 654 Hover . | . . . Flight . | . . . Fastest Speed 50 | 50 90 105 Average Speed 100 | 78 91 110 Slowest Speed 155 | 90 115 155 Overloaded Moves . | . . . Propulsion Burnouts . | . . . Robots Hopped . | . . . Cave-ins Triggered . | . . . Exploration Rate (%) 47 | 3 99 41 Regions Visited 2 Branch Regions 1 Pre-discovered Areas 1 | . . 1 Known Exits Taken . | . . . Unknown Exits Taken 2 | 1 1 . Scrap Searched . | . . . Spaces Dug . | . . . Terrain Destroyed . | . . . Melee . | . . . Projectile . | . . . AOE . | . . . Terrain Rammed . | . . . Walls Destroyed . | . . . Machines Disabled . | . . . Actions | -11 -10 -10 --------- Run | Yrd Mat Sub Total 1783 | 40 980 763 Wait 269 | . 223 46 Move 1363 | 33 676 654 Hop . | . . . Pick Up 21 | 1 11 9 Fast Attach 10 | 6 3 1 Attach 4 | . . 4 Detach 1 | . 1 . Swap 18 | . 7 11 Drop 11 | . 7 4 Fire 86 | . 52 34 Melee . | . . . Ram . | . . . Kick . | . . . Crush . | . . . Escape Stasis . | . . . Rewire . | . . . Trap . | . . . Miscellaneous . | . . . Route ------- -11/Scrapyard -10/Materials (discovered 5 exits: [*Mat x3] / [*Min] / [*Sub]) -10/Subcaves History --------- Turn | Location | Event 25 | -11/Scrapyard | Discovered new exit (range 15) 37 | -11/Scrapyard | Entered Materials 54 | -10/Materials | Discovered new exit (range 13) 281 | -10/Materials | Discovered new exit (range 16) 312 | -10/Materials | Build established: Mutant 313 | -10/Materials | Discovered new exit (range 14) 793 | -10/Materials | Discovered new exit (range 10) 1053 | -10/Materials | Discovered new exit (range 5) 1064 | -10/Materials | Entered Subcaves 1217 | -10/Subcaves | Shifting Twisted Machinery released Sub. Monowheel 1257 | -10/Subcaves | Shifting Twisted Machinery released Flamer 1278 | -10/Subcaves | Core integrity fell below 50% 1659 | -10/Subcaves | Lost 3 parts (1p1u1w) 1761 | -10/Subcaves | A swath of the cavern ceiling suddenly collapsed 1969 | -10/Subcaves | Destroyed by XY-9P0(R) with Subdweller Shrapnel Launcher Last Messages --------------- 01633_ Q8-LNL(R) affixes Scrap Shield Fragment to Scrap Shield. 01635_ Disposable Heat Sink melted. 01635_ Q8-LNL(R) destroyed. 01642_ Acquired Sub. Power Source. 01643_ Acquired 32 matter. 01645_ Acquired Sub. Beam Cannon. 01646_ Acquired 37 matter. 01650_ Acquired Sub. Laser. 01669_ Acquired 6 matter. 01672_ Acquired 9 matter. 01720_ Acquired 52 matter. 01725_ Acquired Sub. Power Source. A swath of the cavern ceiling suddenly collapses. 01783_ Sub. Power Source shoots sparks and powers down. 01845_ Dropped Broken Sub. Power Source. 01944_ Sub. Monowheel destroyed. 01953_ Destroyed Scrap Shield. 01953_ T6-KTI(R) destroyed. 01959_ Acquired Sub. Monowheel. 01961_ Acquired Sub. Power Source. Map ----- +----------------------------------------------------+ | ????????????????????????????????????????# | | ????????????????????????????????????????# # | | ????????????????????????????????????###?# ## | | ????????????????????????????????????# ## #? | | ????????????????????????????????????# #####? | | ????????????????????????????????###?# ##????? | | ??????????????????????????????## #### ##????? | | ??????????????????????????????# ??## #????? | | ??????????????????????????????# ???# #???? | | ?????????????????????????????## ?### ##???? | | ????????????????????????????? ### ###?##? ? | | ????????????????????????????? ## ""####"### | | ????????????????????????????? ## # # #""" | | ?????????????????????????????? ## "### #"" | | ??????????????????????????????? #### ## " | | ???????????????????????????????# #?####?# " | | ??????????????????????????????## ##?????? ## | | ?????????????????????????????## ##????? #" | | ?????????????????????????????# #?#########" | | ?????????????????????????????# ###""##"## # | | ???????????????????????####??# ## ## """"# "# | | ?????????????????????###;;#### ### """"#"" | | ?????????????????????#;; ;;; #?# #""## | | ?????????????????????#; #?# ### | | ????????????????????##; #### * # | | ????????????????????#; @ ;#?# ## | | ????????????????????#;! R;;;;##?# #### # | | ????????????????????#;;% ; ##??# ##?## ## | | ????????????????????##;/!####???# ##?## ####? | | ???????????????????### ##?????####??# #???? | | ???????????????????# #??????????## #???? | | ???????????? #?????????# ##???? | | ?????????# #?????????# ##????? | | ?????????#" ## #????????# ##????? | | ???????????"???##### #????????## ##???? | | ???????????????????### ###?????????#### #???? | | ?????????????????????## ##??????????????#####???? | | ??????????????????????####???????????????????????? | | ?????????????????????????????????????????????????? | | ?????????????????????????????????????????????????? | | ?????????????????????????????????????????????????? | | ?????????????????????????????????????????????????? | | ?????????????????????????????????????????????????? | | ?????????????????????????????????????????????????? | | ?????????????????????????????????????????????????? | | ?????????????????????????????????????????????????? | | ?????????????????????????????????????????????????? | | ?????????????????????????????????????????????????? | | ?????????????????????????????????????????????????? | | ?????????????????????????????????????????????????? | +----------------------------------------------------+ Best States ------------- Heat Dissipation 35 Energy Generation 15 Energy Capacity 400 Matter Stores 300 Matter Capacity 300 Sight Range 16 Terrain Scan Density 10 Evasion (%) 50 Item Schematics ----------------- None Robot Schematics ------------------ None Fabricated ------------ Nothing Alien Tech Used ----------------- None Achievements -------------- None Challenges ------------ None Game ------ Seed SignalMetafieldOptics Manual? 0 Play Time 00:16:20 Cumulative 292.7 hours Start 2024.05.02 @ 18:18:53 End 2024.05.03 @ 17:18:57 Sessions 2 Manual Loads 0 Difficulty Rogue Special Mode None Game No. 243 Rogue 231 Adventurer 12 Explorer 0 Win Type - Total 1 Types 1/0/0/0/0/0/0/0/0 Lore% 34 Gallery% 51 Achievement% 37 Wizard Run 0 Options --------- Layout 1 ASCII 0 Keyboard 0 Movement Mouse Keybinds 0 Fullscreen 1 Font 32/SmallcapsGlow Map View 77x35 Zoom Use 0% Tactical HUD 1 Map Filters NONE Filters NONE Steam 1 RUN: 7a07790c-a6a5-497d-adf8-61c389e8ab83